[Event "Titled Tuesday Blitz February 15 Early 2022"]
[White "Roebers, Jan"]
[Black "Popadic, Dragan"]
[WhiteFideId "1007815"]
[BlackFideId "913650"]
[WhiteElo "2123"]
[BlackElo "2199"]
[Result "0-1"]
[Round "03"]
[TimeControl "180+1"]
[Date "2022.02.15"]
[WhiteClock "0:00:01"]
[BlackClock "0:00:14"]

1. e4 {[%clk 0:03:00]}  c5 {[%clk 0:02:59]} 2. d4 {[%clk 0:03:00]}  cxd4 {[%clk 0:02:58]} 3. c3 {[%clk 0:03:01]}  d3 {[%clk 0:02:58]} 4. c4 {[%clk 0:03:00]}  Nc6 {[%clk 0:02:58]} 5. Nc3 {[%clk 0:03:00]}  d6 {[%clk 0:02:58]} 6. Bxd3 {[%clk 0:03:00]}  Nf6 {[%clk 0:02:58]} 7. Nge2 {[%clk 0:03:00]}  g6 {[%clk 0:02:59]} 8. O-O {[%clk 0:03:00]}  Bg7 {[%clk 0:02:59]} 9. b3 {[%clk 0:03:00]}  O-O {[%clk 0:02:59]} 10. Bb2 {[%clk 0:03:00]}  Bd7 {[%clk 0:02:55]} 11. Qd2 {[%clk 0:02:55]}  Rc8 {[%clk 0:02:55]} 12. Nd5 {[%clk 0:02:55]}  Nxd5 {[%clk 0:02:51]} 13. Bxg7 {[%clk 0:02:54]}  Kxg7 {[%clk 0:02:49]} 14. exd5 {[%clk 0:02:54]}  Nb8 {[%clk 0:02:40]} 15. Kh1 {[%clk 0:02:46]}  Kg8 {[%clk 0:02:40]} 16. f4 {[%clk 0:02:42]}  e6 {[%clk 0:02:39]} 17. Be4 {[%clk 0:02:38]}  exd5 {[%clk 0:02:35]} 18. Bxd5 {[%clk 0:02:38]}  Bc6 {[%clk 0:02:34]} 19. f5 {[%clk 0:02:35]}  Bxd5 {[%clk 0:02:31]} 20. f6 {[%clk 0:02:27]}  Bxg2+ {[%clk 0:02:04]} 21. Kxg2 {[%clk 0:02:21]}  Kh8 {[%clk 0:02:04]} 22. Qh6 {[%clk 0:02:14]}  Rg8 {[%clk 0:02:03]} 23. Rf3 {[%clk 0:02:13]}  Qf8 {[%clk 0:02:00]} 24. Qxf8 {[%clk 0:02:02]}  Rgxf8 {[%clk 0:01:59]} 25. Nf4 {[%clk 0:02:02]}  Nc6 {[%clk 0:01:54]} 26. Nd5 {[%clk 0:02:00]}  h6 {[%clk 0:01:51]} 27. Rd1 {[%clk 0:01:56]}  Rfe8 {[%clk 0:01:46]} 28. Nf4 {[%clk 0:01:53]}  Ne5 {[%clk 0:01:37]} 29. Rf2 {[%clk 0:01:46]}  Ng4 {[%clk 0:01:29]} 30. Rfd2 {[%clk 0:01:44]}  Nxf6 {[%clk 0:01:28]} 31. Rxd6 {[%clk 0:01:44]}  Kg7 {[%clk 0:01:26]} 32. Nd5 {[%clk 0:01:33]}  Nxd5 {[%clk 0:01:12]} 33. R6xd5 {[%clk 0:01:32]}  Re2+ {[%clk 0:01:11]} 34. Kg3 {[%clk 0:01:32]}  Rxa2 {[%clk 0:01:10]} 35. Rd7 {[%clk 0:01:32]}  b6 {[%clk 0:01:10]} 36. Rf1 {[%clk 0:01:30]}  Rf8 {[%clk 0:01:10]} 37. h4 {[%clk 0:01:29]}  h5 {[%clk 0:01:09]} 38. Re1 {[%clk 0:01:25]}  Ra3 {[%clk 0:01:08]} 39. Re3 {[%clk 0:01:24]}  Ra5 {[%clk 0:01:03]} 40. Ree7 {[%clk 0:01:20]}  Ra3 {[%clk 0:00:59]} 41. Re3 {[%clk 0:01:14]}  Kf6 {[%clk 0:00:56]} 42. Rc7 {[%clk 0:01:08]}  Kg7 {[%clk 0:00:54]} 43. c5 {[%clk 0:01:05]}  bxc5 {[%clk 0:00:53]} 44. Rxc5 {[%clk 0:01:05]}  Ra6 {[%clk 0:00:52]} 45. b4 {[%clk 0:01:01]}  Rb8 {[%clk 0:00:51]} 46. Re4 {[%clk 0:00:56]}  Rab6 {[%clk 0:00:51]} 47. Rcc4 {[%clk 0:00:55]}  R8b7 {[%clk 0:00:51]} 48. Rf4 {[%clk 0:00:55]}  Rf6 {[%clk 0:00:50]} 49. Rfd4 {[%clk 0:00:52]}  Rfb6 {[%clk 0:00:48]} 50. Rf4 {[%clk 0:00:51]}  a6 {[%clk 0:00:48]} 51. Rfe4 {[%clk 0:00:50]}  Rb5 {[%clk 0:00:48]} 52. Rf4 {[%clk 0:00:50]}  a5 {[%clk 0:00:47]} 53. bxa5 {[%clk 0:00:49]}  Rxa5 {[%clk 0:00:47]} 54. Rf3 {[%clk 0:00:46]}  Rab5 {[%clk 0:00:47]} 55. Rff4 {[%clk 0:00:45]}  Rb3+ {[%clk 0:00:46]} 56. Kg2 {[%clk 0:00:45]}  Ra7 {[%clk 0:00:45]} 57. Rf2 {[%clk 0:00:43]}  Re7 {[%clk 0:00:43]} 58. Ra4 {[%clk 0:00:42]}  f6 {[%clk 0:00:37]} 59. Ra6 {[%clk 0:00:41]}  f5 {[%clk 0:00:37]} 60. Rd2 {[%clk 0:00:38]}  Re4 {[%clk 0:00:32]} 61. Rd7+ {[%clk 0:00:36]}  Kh6 {[%clk 0:00:31]} 62. Rdd6 {[%clk 0:00:31]}  Rg4+ {[%clk 0:00:30]} 63. Kf2 {[%clk 0:00:31]}  Rh3 {[%clk 0:00:29]} 64. Ra8 {[%clk 0:00:18]}  Rhxh4 {[%clk 0:00:29]} 65. Rh8+ {[%clk 0:00:18]}  Kg5 {[%clk 0:00:29]} 66. Rg8 {[%clk 0:00:18]}  Rh2+ {[%clk 0:00:28]} 67. Kf3 {[%clk 0:00:17]}  Rh3+ {[%clk 0:00:26]} 68. Kf2 {[%clk 0:00:16]}  Kh4 {[%clk 0:00:22]} 69. Rh8 {[%clk 0:00:10]}  Ra3 {[%clk 0:00:16]} 70. Rb6 {[%clk 0:00:06]}  Kh3 {[%clk 0:00:14]} 71. Rh6 {[%clk 0:00:01]}  Rg2+ {[%clk 0:00:14]} 72. Kf1 {[%clk 0:00:01]}  Ra1+ {[%clk 0:00:14]} 0-1


[Site "https://www.chess.com"]

[Event "Titled Tuesday Blitz February 15 Early 2022"]
[White "Rustemov, Alexander"]
[Black "Fiorito, Fabian"]
[WhiteFideId "4119002"]
[BlackFideId "100200"]
[WhiteElo "2781"]
[BlackElo "2395"]
[Result "1-0"]
[Round "03"]
[TimeControl "180+1"]
[Date "2022.02.15"]
[WhiteClock "0:00:27"]
[BlackClock "0:00:21"]

1. d4 {[%clk 0:03:00]}  d5 {[%clk 0:03:00]} 2. c4 {[%clk 0:03:00]}  c6 {[%clk 0:03:00]} 3. Nc3 {[%clk 0:03:01]}  Nf6 {[%clk 0:03:01]} 4. e3 {[%clk 0:03:02]}  e6 {[%clk 0:03:00]} 5. Nf3 {[%clk 0:03:02]}  Nbd7 {[%clk 0:03:00]} 6. Qc2 {[%clk 0:03:03]}  Bd6 {[%clk 0:03:00]} 7. Bd2 {[%clk 0:03:03]}  O-O {[%clk 0:03:00]} 8. O-O-O {[%clk 0:03:04]}  dxc4 {[%clk 0:02:40]} 9. Bxc4 {[%clk 0:03:03]}  b5 {[%clk 0:02:40]} 10. Bd3 {[%clk 0:03:04]}  Qe7 {[%clk 0:02:38]} 11. e4 {[%clk 0:03:03]}  e5 {[%clk 0:02:19]} 12. dxe5 {[%clk 0:02:59]}  Bxe5 {[%clk 0:02:15]} 13. Rhe1 {[%clk 0:02:48]}  h6 {[%clk 0:02:01]} 14. Nxe5 {[%clk 0:02:44]}  Nxe5 {[%clk 0:02:02]} 15. Bf1 {[%clk 0:02:43]}  Be6 {[%clk 0:01:54]} 16. Bf4 {[%clk 0:02:33]}  Bc4 {[%clk 0:01:43]} 17. Bxe5 {[%clk 0:02:30]}  Qxe5 {[%clk 0:01:44]} 18. Bxc4 {[%clk 0:02:28]}  bxc4 {[%clk 0:01:45]} 19. g3 {[%clk 0:02:26]}  Qa5 {[%clk 0:01:39]} 20. Rd4 {[%clk 0:02:21]}  Rfd8 {[%clk 0:01:20]} 21. Rxc4 {[%clk 0:02:19]}  c5 {[%clk 0:01:11]} 22. Qa4 {[%clk 0:01:36]}  Qb6 {[%clk 0:01:00]} 23. Qb5 {[%clk 0:01:35]}  Qe6 {[%clk 0:01:00]} 24. Rxc5 {[%clk 0:01:30]}  Rab8 {[%clk 0:00:37]} 25. Qe2 {[%clk 0:01:24]}  Qd6 {[%clk 0:00:33]} 26. Rc4 {[%clk 0:01:18]}  Qb6 {[%clk 0:00:31]} 27. Rd1 {[%clk 0:01:10]}  Rdc8 {[%clk 0:00:30]} 28. Rxc8+ {[%clk 0:01:08]}  Rxc8 {[%clk 0:00:31]} 29. f3 {[%clk 0:01:00]}  Qa5 {[%clk 0:00:28]} 30. Kb1 {[%clk 0:00:52]}  Rb8 {[%clk 0:00:29]} 31. Qd2 {[%clk 0:00:49]}  Ne8 {[%clk 0:00:26]} 32. Nd5 {[%clk 0:00:48]}  Qb5 {[%clk 0:00:26]} 33. Nc3 {[%clk 0:00:38]}  Qb4 {[%clk 0:00:24]} 34. b3 {[%clk 0:00:32]}  Nc7 {[%clk 0:00:23]} 35. Nd5 {[%clk 0:00:31]}  Nxd5 {[%clk 0:00:22]} 36. exd5 {[%clk 0:00:28]}  a5 {[%clk 0:00:21]} 37. Qxb4 {[%clk 0:00:27]} 1-0


[Site "https://www.chess.com"]

[Event "Titled Tuesday Blitz February 15 Early 2022"]
[White "Safarli, Eltaj"]
[Black "Coto Mederos, Michel"]
[WhiteFideId "13402129"]
[BlackFideId "3508528"]
[WhiteElo "2634"]
[BlackElo "2427"]
[Result "1-0"]
[Round "03"]
[TimeControl "180+1"]
[Date "2022.02.15"]
[WhiteClock "0:01:18"]
[BlackClock "0:00:04"]

1. e4 {[%clk 0:03:00]}  e5 {[%clk 0:02:58]} 2. Nf3 {[%clk 0:02:59]}  Nc6 {[%clk 0:02:59]} 3. Bb5 {[%clk 0:02:59]}  a6 {[%clk 0:02:59]} 4. Ba4 {[%clk 0:02:59]}  Nf6 {[%clk 0:02:58]} 5. Nc3 {[%clk 0:03:00]}  b5 {[%clk 0:02:50]} 6. Bb3 {[%clk 0:03:00]}  Bc5 {[%clk 0:02:51]} 7. a4 {[%clk 0:02:57]}  b4 {[%clk 0:02:45]} 8. Nd5 {[%clk 0:02:57]}  Nxe4 {[%clk 0:02:15]} 9. d4 {[%clk 0:02:34]}  Nxd4 {[%clk 0:01:57]} 10. Nxd4 {[%clk 0:02:34]}  Bxd4 {[%clk 0:01:53]} 11. Qg4 {[%clk 0:02:32]}  Bxf2+ {[%clk 0:01:24]} 12. Ke2 {[%clk 0:02:30]}  Qh4 {[%clk 0:01:22]} 13. Qxh4 {[%clk 0:02:11]}  Bxh4 {[%clk 0:01:22]} 14. Nxc7+ {[%clk 0:02:11]}  Kd8 {[%clk 0:00:28]} 15. Nxa8 {[%clk 0:02:12]}  Bb7 {[%clk 0:00:29]} 16. Nb6 {[%clk 0:02:11]}  a5 {[%clk 0:00:30]} 17. Bd5 {[%clk 0:02:06]}  Ba6+ {[%clk 0:00:30]} 18. Bc4 {[%clk 0:02:05]}  Bb7 {[%clk 0:00:31]} 19. Be3 {[%clk 0:02:02]}  f5 {[%clk 0:00:29]} 20. Rad1 {[%clk 0:02:01]}  d6 {[%clk 0:00:27]} 21. g3 {[%clk 0:01:51]}  Bxg3 {[%clk 0:00:18]} 22. Bd5 {[%clk 0:01:42]}  Bxd5 {[%clk 0:00:13]} 23. Rxd5 {[%clk 0:01:41]}  Kc7 {[%clk 0:00:12]} 24. Rxa5 {[%clk 0:01:36]}  f4 {[%clk 0:00:08]} 25. Rd1 {[%clk 0:01:33]}  Bh4 {[%clk 0:00:06]} 26. Nd5+ {[%clk 0:01:33]}  Kc6 {[%clk 0:00:06]} 27. Ra6+ {[%clk 0:01:31]}  Kd7 {[%clk 0:00:07]} 28. Ra7+ {[%clk 0:01:31]}  Ke6 {[%clk 0:00:07]} 29. Kf3 {[%clk 0:01:18]}  Ng5+ {[%clk 0:00:04]} 30. Kg4 {[%clk 0:01:18]}  fxe3 {[%clk 0:00:04]} 31. Re7# {[%clk 0:01:18]} 1-0


[Site "https://www.chess.com"]

[Event "Titled Tuesday Blitz February 15 Early 2022"]
[White "Samaganova, Aleksandra"]
[Black "Batsiashvili, Nino"]
[WhiteFideId "13800221"]
[BlackFideId "13602993"]
[WhiteElo "1859"]
[BlackElo "2230"]
[Result "0-1"]
[Round "03"]
[TimeControl "180+1"]
[Date "2022.02.15"]
[WhiteClock "0:00:02"]
[BlackClock "0:00:24"]

1. c4 {[%clk 0:03:00]}  e6 {[%clk 0:02:58]} 2. Nc3 {[%clk 0:03:00]}  d5 {[%clk 0:02:59]} 3. e3 {[%clk 0:02:58]}  Nf6 {[%clk 0:02:59]} 4. d4 {[%clk 0:02:55]}  Be7 {[%clk 0:02:59]} 5. Nf3 {[%clk 0:02:54]}  O-O {[%clk 0:03:00]} 6. Bd3 {[%clk 0:02:54]}  dxc4 {[%clk 0:02:57]} 7. Bxc4 {[%clk 0:02:53]}  a6 {[%clk 0:02:58]} 8. a3 {[%clk 0:02:47]}  b5 {[%clk 0:02:57]} 9. Bd3 {[%clk 0:02:45]}  c5 {[%clk 0:02:57]} 10. dxc5 {[%clk 0:02:43]}  Bxc5 {[%clk 0:02:58]} 11. b4 {[%clk 0:02:44]}  Bd6 {[%clk 0:02:50]} 12. Ne4 {[%clk 0:02:33]}  Nxe4 {[%clk 0:02:45]} 13. Bxe4 {[%clk 0:02:33]}  Ra7 {[%clk 0:02:45]} 14. Bb2 {[%clk 0:02:24]}  Rd7 {[%clk 0:02:34]} 15. Qb3 {[%clk 0:02:04]}  f5 {[%clk 0:01:52]} 16. Bb1 {[%clk 0:01:24]}  Nc6 {[%clk 0:01:39]} 17. Ba2 {[%clk 0:01:19]}  Kh8 {[%clk 0:00:57]} 18. Rd1 {[%clk 0:01:08]}  a5 {[%clk 0:00:40]} 19. O-O {[%clk 0:00:32]}  axb4 {[%clk 0:00:40]} 20. axb4 {[%clk 0:00:21]}  Bxb4 {[%clk 0:00:35]} 21. Rxd7 {[%clk 0:00:17]}  Qxd7 {[%clk 0:00:36]} 22. Rd1 {[%clk 0:00:17]}  Qe7 {[%clk 0:00:34]} 23. Nd4 {[%clk 0:00:09]}  Nxd4 {[%clk 0:00:34]} 24. Rxd4 {[%clk 0:00:09]}  Bc5 {[%clk 0:00:33]} 25. Rd1 {[%clk 0:00:07]}  b4 {[%clk 0:00:32]} 26. Qc4 {[%clk 0:00:05]}  e5 {[%clk 0:00:31]} 27. h3 {[%clk 0:00:05]}  e4 {[%clk 0:00:28]} 28. Rc1 {[%clk 0:00:05]}  Bd6 {[%clk 0:00:28]} 29. Qd4 {[%clk 0:00:04]}  f4 {[%clk 0:00:24]} 30. exf4 {[%clk 0:00:04]}  Bxf4 {[%clk 0:00:24]} 31. Re1 {[%clk 0:00:04]}  e3 {[%clk 0:00:24]} 32. fxe3 {[%clk 0:00:03]}  Bg3 {[%clk 0:00:25]} 33. Rf1 {[%clk 0:00:03]}  Bh2+ {[%clk 0:00:23]} 34. Kxh2 {[%clk 0:00:02]}  Rxf1 {[%clk 0:00:24]} 0-1


[Site "https://www.chess.com"]

[Event "Titled Tuesday Blitz February 15 Early 2022"]
[White "Samunenkov, Ihor"]
[Black "Le, Tuan Minh"]
[WhiteFideId "14187086"]
[BlackFideId "12401153"]
[WhiteElo "2406"]
[BlackElo "2450"]
[Result "1-0"]
[Round "03"]
[TimeControl "180+1"]
[Date "2022.02.15"]
[WhiteClock "0:00:08"]
[BlackClock "0:00:10"]

1. d4 {[%clk 0:03:00]}  d5 {[%clk 0:02:51]} 2. c4 {[%clk 0:03:00]}  c6 {[%clk 0:02:49]} 3. cxd5 {[%clk 0:02:55]}  cxd5 {[%clk 0:02:50]} 4. Nc3 {[%clk 0:02:55]}  Nf6 {[%clk 0:02:49]} 5. Bf4 {[%clk 0:02:55]}  Nc6 {[%clk 0:02:49]} 6. e3 {[%clk 0:02:55]}  a6 {[%clk 0:02:49]} 7. Bd3 {[%clk 0:02:54]}  Bg4 {[%clk 0:02:50]} 8. Nge2 {[%clk 0:02:54]}  e6 {[%clk 0:02:50]} 9. O-O {[%clk 0:02:52]}  Bd6 {[%clk 0:02:50]} 10. Bxd6 {[%clk 0:02:46]}  Qxd6 {[%clk 0:02:51]} 11. Rc1 {[%clk 0:02:46]}  O-O {[%clk 0:02:51]} 12. Na4 {[%clk 0:02:46]}  Rac8 {[%clk 0:02:49]} 13. Nc5 {[%clk 0:02:37]}  Rc7 {[%clk 0:02:39]} 14. Qb3 {[%clk 0:02:21]}  Na5 {[%clk 0:01:44]} 15. Qb4 {[%clk 0:02:04]}  Nc4 {[%clk 0:01:43]} 16. Bxc4 {[%clk 0:01:38]}  dxc4 {[%clk 0:01:42]} 17. f3 {[%clk 0:01:38]}  Bh5 {[%clk 0:00:53]} 18. Rxc4 {[%clk 0:01:35]}  Rfc8 {[%clk 0:00:42]} 19. b3 {[%clk 0:00:44]}  e5 {[%clk 0:00:29]} 20. Ng3 {[%clk 0:00:39]}  Bg6 {[%clk 0:00:29]} 21. Rfc1 {[%clk 0:00:30]}  exd4 {[%clk 0:00:28]} 22. exd4 {[%clk 0:00:28]}  Nd5 {[%clk 0:00:26]} 23. Qd2 {[%clk 0:00:27]}  b5 {[%clk 0:00:26]} 24. Nce4 {[%clk 0:00:23]}  Qe7 {[%clk 0:00:26]} 25. Rxc7 {[%clk 0:00:23]}  Rxc7 {[%clk 0:00:27]} 26. Rxc7 {[%clk 0:00:24]}  Qxc7 {[%clk 0:00:28]} 27. Nc5 {[%clk 0:00:23]}  Qd6 {[%clk 0:00:19]} 28. Nge4 {[%clk 0:00:21]}  Qe7 {[%clk 0:00:15]} 29. Qg5 {[%clk 0:00:15]}  Nf6 {[%clk 0:00:09]} 30. Nxf6+ {[%clk 0:00:11]}  gxf6 {[%clk 0:00:10]} 31. Qd2 {[%clk 0:00:12]}  Qd6 {[%clk 0:00:08]} 32. g3 {[%clk 0:00:08]}  f5 {[%clk 0:00:08]} 33. Kf2 {[%clk 0:00:08]}  h5 {[%clk 0:00:07]} 34. Qf4 {[%clk 0:00:08]}  Qb6 {[%clk 0:00:06]} 35. Qe5 {[%clk 0:00:06]}  Qa5 {[%clk 0:00:06]} 36. Qe2 {[%clk 0:00:03]}  Qc3 {[%clk 0:00:06]} 37. Qe3 {[%clk 0:00:01]}  Qb2+ {[%clk 0:00:07]} 38. Kg1 {[%clk 0:00:02]}  Qb1+ {[%clk 0:00:06]} 39. Kg2 {[%clk 0:00:02]}  Qxa2+ {[%clk 0:00:07]} 40. Kh3 {[%clk 0:00:02]}  Qb1 {[%clk 0:00:07]} 41. Nd7 {[%clk 0:00:02]}  Qf1+ {[%clk 0:00:07]} 42. Kh4 {[%clk 0:00:02]}  Qg2 {[%clk 0:00:04]} 43. Kg5 {[%clk 0:00:02]}  Qc2 {[%clk 0:00:01]} 44. Qe8+ {[%clk 0:00:02]}  Kg7 {[%clk 0:00:01]} 45. Qe5+ {[%clk 0:00:02]}  Kh7 {[%clk 0:00:01]} 46. Nf6+ {[%clk 0:00:03]}  Kg7 {[%clk 0:00:02]} 47. Nxh5+ {[%clk 0:00:03]}  Kf8 {[%clk 0:00:02]} 48. Kh6 {[%clk 0:00:01]}  Qc1+ {[%clk 0:00:01]} 49. Nf4 {[%clk 0:00:01]}  Qc6 {[%clk 0:00:02]} 50. Qh8+ {[%clk 0:00:02]}  Ke7 {[%clk 0:00:01]} 51. Qe5+ {[%clk 0:00:02]}  Kd7 {[%clk 0:00:02]} 52. Kg5 {[%clk 0:00:02]}  Qc7 {[%clk 0:00:02]} 53. Qxc7+ {[%clk 0:00:02]}  Kxc7 {[%clk 0:00:03]} 54. Nxg6 {[%clk 0:00:03]}  fxg6 {[%clk 0:00:04]} 55. Kxg6 {[%clk 0:00:04]}  a5 {[%clk 0:00:05]} 56. h4 {[%clk 0:00:04]}  a4 {[%clk 0:00:05]} 57. bxa4 {[%clk 0:00:04]}  b4 {[%clk 0:00:06]} 58. h5 {[%clk 0:00:05]}  b3 {[%clk 0:00:07]} 59. h6 {[%clk 0:00:05]}  b2 {[%clk 0:00:08]} 60. h7 {[%clk 0:00:06]}  b1=Q {[%clk 0:00:09]} 61. h8=Q {[%clk 0:00:07]}  f4+ {[%clk 0:00:10]} 62. Kg5 {[%clk 0:00:07]}  fxg3 {[%clk 0:00:10]} 63. Qe5+ {[%clk 0:00:08]}  Kb7 {[%clk 0:00:10]} 64. Qxg3 {[%clk 0:00:08]}  Qc1+ {[%clk 0:00:11]} 65. Qf4 {[%clk 0:00:08]}  Qc8 {[%clk 0:00:10]} 66. Qe4+ {[%clk 0:00:08]}  Ka6 {[%clk 0:00:10]} 67. Qg6+ {[%clk 0:00:07]}  Ka5 {[%clk 0:00:10]} 68. Qf5+ {[%clk 0:00:08]} 1-0


[Site "https://www.chess.com"]

[Event "Titled Tuesday Blitz February 15 Early 2022"]
[White "Sarkar, Justin"]
[Black "Eynullayev, Altay"]
[WhiteFideId "2010011"]
[BlackFideId "13413562"]
[WhiteElo "2038"]
[BlackElo "2079"]
[Result "0-1"]
[Round "03"]
[TimeControl "180+1"]
[Date "2022.02.15"]
[WhiteClock "0:00:01"]
[BlackClock "0:00:04"]

1. e4 {[%clk 0:02:56]}  c5 {[%clk 0:02:59]} 2. Nf3 {[%clk 0:02:55]}  e6 {[%clk 0:02:59]} 3. d4 {[%clk 0:02:54]}  cxd4 {[%clk 0:03:00]} 4. Nxd4 {[%clk 0:02:54]}  Nc6 {[%clk 0:03:00]} 5. Nc3 {[%clk 0:02:51]}  a6 {[%clk 0:03:00]} 6. Be3 {[%clk 0:02:45]}  Nf6 {[%clk 0:02:59]} 7. f4 {[%clk 0:02:37]}  Bb4 {[%clk 0:02:58]} 8. Bd3 {[%clk 0:02:27]}  e5 {[%clk 0:02:53]} 9. Nf5 {[%clk 0:01:51]}  O-O {[%clk 0:02:49]} 10. O-O {[%clk 0:01:47]}  Bxc3 {[%clk 0:02:13]} 11. bxc3 {[%clk 0:01:45]}  d5 {[%clk 0:02:12]} 12. fxe5 {[%clk 0:01:35]}  Nxe5 {[%clk 0:02:10]} 13. Bd4 {[%clk 0:00:54]}  Bxf5 {[%clk 0:01:10]} 14. Rxf5 {[%clk 0:00:47]}  dxe4 {[%clk 0:00:44]} 15. Bxe5 {[%clk 0:00:40]}  exd3 {[%clk 0:00:44]} 16. Bxf6 {[%clk 0:00:32]}  gxf6 {[%clk 0:00:45]} 17. cxd3 {[%clk 0:00:28]}  Kh8 {[%clk 0:00:34]} 18. Qf3 {[%clk 0:00:25]}  Rc8 {[%clk 0:00:23]} 19. d4 {[%clk 0:00:12]}  Rc6 {[%clk 0:00:21]} 20. Rf1 {[%clk 0:00:12]}  Qc7 {[%clk 0:00:11]} 21. Rxf6 {[%clk 0:00:07]}  Rxc3 {[%clk 0:00:11]} 22. Qe4 {[%clk 0:00:04]}  Rc6 {[%clk 0:00:06]} 23. Rxc6 {[%clk 0:00:04]}  Qxc6 {[%clk 0:00:05]} 24. d5 {[%clk 0:00:04]}  Qg6 {[%clk 0:00:04]} 25. Qe5+ {[%clk 0:00:03]}  f6 {[%clk 0:00:05]} 26. Qe7 {[%clk 0:00:03]}  Rf7 {[%clk 0:00:04]} 27. Qe8+ {[%clk 0:00:04]}  Kg7 {[%clk 0:00:05]} 28. d6 {[%clk 0:00:04]}  Qd3 {[%clk 0:00:04]} 29. d7 {[%clk 0:00:01]}  Qd4+ {[%clk 0:00:04]} 0-1


[Site "https://www.chess.com"]

[Event "Titled Tuesday Blitz February 15 Early 2022"]
[White "Senthil Maran K"]
[Black "Wartiovaara, Oliver"]
[WhiteFideId "25035681"]
[BlackFideId "513024"]
[WhiteElo "2194"]
[BlackElo "1971"]
[Result "1-0"]
[Round "03"]
[TimeControl "180+1"]
[Date "2022.02.15"]
[WhiteClock "0:01:08"]
[BlackClock "0:01:00"]

1. g3 {[%clk 0:03:00]}  g6 {[%clk 0:02:41]} 2. Nf3 {[%clk 0:02:59]}  Bg7 {[%clk 0:02:41]} 3. d4 {[%clk 0:02:59]}  Nf6 {[%clk 0:02:40]} 4. Bg2 {[%clk 0:02:59]}  O-O {[%clk 0:02:40]} 5. O-O {[%clk 0:02:59]}  d6 {[%clk 0:02:40]} 6. c4 {[%clk 0:02:59]}  Nc6 {[%clk 0:02:40]} 7. Nc3 {[%clk 0:03:00]}  e5 {[%clk 0:02:40]} 8. dxe5 {[%clk 0:02:58]}  dxe5 {[%clk 0:02:41]} 9. Bg5 {[%clk 0:02:56]}  Be6 {[%clk 0:02:40]} 10. Nd5 {[%clk 0:02:47]}  Bxd5 {[%clk 0:02:32]} 11. Bxf6 {[%clk 0:02:46]}  Bxf6 {[%clk 0:02:33]} 12. cxd5 {[%clk 0:02:46]}  Nd4 {[%clk 0:02:32]} 13. Nd2 {[%clk 0:02:43]}  Nb5 {[%clk 0:02:21]} 14. Qa4 {[%clk 0:02:29]}  Nd6 {[%clk 0:02:20]} 15. Rac1 {[%clk 0:02:23]}  a6 {[%clk 0:02:18]} 16. Rc2 {[%clk 0:02:19]}  Re8 {[%clk 0:02:11]} 17. Rfc1 {[%clk 0:02:17]}  Re7 {[%clk 0:02:12]} 18. Qa5 {[%clk 0:02:08]}  Bg5 {[%clk 0:02:04]} 19. e3 {[%clk 0:02:01]}  Rc8 {[%clk 0:02:00]} 20. Bh3 {[%clk 0:01:57]}  f5 {[%clk 0:01:59]} 21. Nc4 {[%clk 0:01:36]}  Nxc4 {[%clk 0:01:42]} 22. Rxc4 {[%clk 0:01:37]}  e4 {[%clk 0:01:15]} 23. Bf1 {[%clk 0:01:34]}  Bf6 {[%clk 0:01:13]} 24. Qb4 {[%clk 0:01:28]}  Rd7 {[%clk 0:01:10]} 25. Qxb7 {[%clk 0:01:23]}  Rxd5 {[%clk 0:01:10]} 26. Rc6 {[%clk 0:01:15]}  Rd2 {[%clk 0:01:00]} 27. Rxf6 {[%clk 0:01:08]} 1-0


[Site "https://www.chess.com"]

[Event "Titled Tuesday Blitz February 15 Early 2022"]
[White "Shuvalov, Evgenij"]
[Black "Vine, Elzbieta"]
[WhiteFideId "4187237"]
[BlackFideId "1119320"]
[WhiteElo "2119"]
[BlackElo "1806"]
[Result "1-0"]
[Round "03"]
[TimeControl "180+1"]
[Date "2022.02.15"]
[WhiteClock "0:00:11"]
[BlackClock "0:00:01"]

1. e4 {[%clk 0:02:57]}  c5 {[%clk 0:02:59]} 2. Nf3 {[%clk 0:02:56]}  d6 {[%clk 0:02:58]} 3. c3 {[%clk 0:02:53]}  Nc6 {[%clk 0:02:54]} 4. d4 {[%clk 0:02:52]}  cxd4 {[%clk 0:02:54]} 5. cxd4 {[%clk 0:02:52]}  Nf6 {[%clk 0:02:52]} 6. Nc3 {[%clk 0:02:52]}  Bg4 {[%clk 0:02:49]} 7. Be3 {[%clk 0:02:47]}  Qa5 {[%clk 0:02:31]} 8. Bd3 {[%clk 0:02:38]}  Nb4 {[%clk 0:02:08]} 9. Bb1 {[%clk 0:02:34]}  g6 {[%clk 0:02:04]} 10. O-O {[%clk 0:02:30]}  Bg7 {[%clk 0:02:04]} 11. h3 {[%clk 0:02:27]}  Bd7 {[%clk 0:01:54]} 12. a3 {[%clk 0:02:25]}  Nc6 {[%clk 0:01:51]} 13. d5 {[%clk 0:02:09]}  Ne5 {[%clk 0:01:44]} 14. Nd2 {[%clk 0:01:34]}  O-O {[%clk 0:01:42]} 15. f4 {[%clk 0:01:31]}  Bh6 {[%clk 0:01:28]} 16. Qe2 {[%clk 0:01:20]}  Nh5 {[%clk 0:01:10]} 17. Kh2 {[%clk 0:01:05]}  f5 {[%clk 0:00:08]} 18. fxe5 {[%clk 0:00:55]}  f4 {[%clk 0:00:08]} 19. Bf2 {[%clk 0:00:36]}  Ng3 {[%clk 0:00:06]} 20. Bxg3 {[%clk 0:00:17]}  fxg3+ {[%clk 0:00:06]} 21. Kxg3 {[%clk 0:00:16]}  dxe5 {[%clk 0:00:06]} 22. Nc4 {[%clk 0:00:15]}  Bf4+ {[%clk 0:00:05]} 23. Kf2 {[%clk 0:00:12]}  Bg5+ {[%clk 0:00:03]} 24. Ke1 {[%clk 0:00:12]}  Bh4+ {[%clk 0:00:03]} 25. Kd1 {[%clk 0:00:12]}  Qc5 {[%clk 0:00:01]} 26. Bd3 {[%clk 0:00:11]} 1-0


[Site "https://www.chess.com"]

[Event "Titled Tuesday Blitz February 15 Early 2022"]
[White "Shyaamnikhil P"]
[Black "Karabalis, Harilos"]
[WhiteFideId "5024218"]
[BlackFideId "4621808"]
[WhiteElo "2292"]
[BlackElo "2168"]
[Result "1-0"]
[Round "03"]
[TimeControl "180+1"]
[Date "2022.02.15"]
[WhiteClock "0:02:39"]
[BlackClock "0:02:24"]

1. d4 {[%clk 0:03:00]}  Nf6 {[%clk 0:02:59]} 2. Nf3 {[%clk 0:03:01]}  c5 {[%clk 0:02:58]} 3. e3 {[%clk 0:03:00]}  d5 {[%clk 0:02:58]} 4. c4 {[%clk 0:03:00]}  cxd4 {[%clk 0:02:53]} 5. exd4 {[%clk 0:02:59]}  Nc6 {[%clk 0:02:53]} 6. Nc3 {[%clk 0:02:58]}  Bg4 {[%clk 0:02:51]} 7. cxd5 {[%clk 0:02:58]}  Nxd5 {[%clk 0:02:50]} 8. Qb3 {[%clk 0:02:57]}  Bxf3 {[%clk 0:02:44]} 9. gxf3 {[%clk 0:02:50]}  Nxc3 {[%clk 0:02:34]} 10. bxc3 {[%clk 0:02:43]}  Qb6 {[%clk 0:02:25]} 11. Rb1 {[%clk 0:02:39]}  Qxb3 {[%clk 0:02:24]} 12. Rxb3 {[%clk 0:02:40]}  b6 {[%clk 0:02:24]} 13. Bb5 {[%clk 0:02:39]} 1-0


[Site "https://www.chess.com"]